{"text_format":"3","workbook":"xlsx","n_sheets":1,"sheets":["INVENTÁRIO DE EQUIPAMENTOS"],"not_rendered":{"defined_names":5},"read":"whole","date_system":"1900"}

{"sheet":"INVENTÁRIO DE EQUIPAMENTOS","index":0,"n_rows":9,"n_cols":19,"rows_kept":9,"merged":[[0,1,0,5],[0,6,0,9],[0,10,0,12],[0,13,0,14],[2,1,2,6],[2,7,2,18]]}
[null,"LISTA DE INVENTÁRIO DE EQUIPAMENTOS"]
[]
[null,"ESTADO FÍSICO",{"$nulls":5},"ESTADO FINANCEIRO"]
[null,"Número de série ou ativo","Descrição do item (fabricante e modelo)","Localização","Estado","Fornecedor","Anos de serviço restantes ","Valor inicial","Entrada","Data de compra ou arrendamento","Prazo do empréstimo em anos","Taxa de empréstimo","Pagamento mensal","Custos operacionais mensais","Custo mensal total","Valor esperado no final do prazo do empréstimo","Depreciação linear anual","Depreciação linear mensal","Valor atual"]
[null,123,"Modelo do Fabricante","Sede","Bom","local",5,{"v":30000,"d":"30,000.00 €"},{"v":5000,"d":"5,000.00 €"},{"$f":"DATE(YEAR(TODAY())-2, 1,1)","v":"2016-01-01"},4,{"v":0.1,"d":"10.00%"},{"$f":"IFERROR(IF(AND(Dados[[#This Row],[Valor inicial]]>0,Dados[[#This Row],[Valor inicial]]<>Dados[[#This Row],[Entrada]]),-1*PMT(Dados[[#This Row],[Taxa de empréstimo]]/12,Dados[[#This Row],[Prazo do empréstimo em anos]]*12,Dados[[#This Row],[Valor inicial]]-Dados[[#This Row],[Entrada]]),0),0)","v":{"v":634.0645858686797,"d":"634.06 €"}},{"v":200,"d":"200.00 €"},{"$f":"IFERROR(Dados[[#This Row],[Custos operacionais mensais]]+Dados[[#This Row],[Pagamento mensal]],\"\")","v":{"v":834.0645858686797,"d":"834.06 €"}},{"v":20000,"d":"20,000.00 €"},{"$f":"IFERROR(IF(Dados[[#This Row],[Valor inicial]]>0,SLN(Dados[[#This Row],[Valor inicial]],Dados[[#This Row],[Valor esperado no final do prazo do empréstimo]],Dados[[#This Row],[Anos de serviço restantes ]]),0),0)","v":{"v":2000,"d":"2,000.00 €"}},{"$f":"IFERROR(Dados[[#This Row],[Depreciação linear anual]]/12,0)","v":{"v":166.66666666666666,"d":"166.67 €"}},{"$f":"IFERROR(Dados[[#This Row],[Valor inicial]]-(Dados[[#This Row],[Depreciação linear anual]]*((TODAY()-Dados[[#This Row],[Data de compra ou arrendamento]])/365)),0)","v":{"v":25013.698630136987,"d":"25,013.70 €"}}]
[null,456,"Modelo do Fabricante","Sede","Excelente","local",3,{"v":5000,"d":"5,000.00 €"},{"v":5000,"d":"5,000.00 €"},{"$f":"DATE(YEAR(TODAY())-1, 1,1)","v":"2017-01-01"},null,null,{"$f":"IFERROR(IF(AND(Dados[[#This Row],[Valor inicial]]>0,Dados[[#This Row],[Valor inicial]]<>Dados[[#This Row],[Entrada]]),-1*PMT(Dados[[#This Row],[Taxa de empréstimo]]/12,Dados[[#This Row],[Prazo do empréstimo em anos]]*12,Dados[[#This Row],[Valor inicial]]-Dados[[#This Row],[Entrada]]),0),0)","v":{"v":0,"d":"0.00 €"}},{"v":20,"d":"20.00 €"},{"$f":"IFERROR(Dados[[#This Row],[Custos operacionais mensais]]+Dados[[#This Row],[Pagamento mensal]],\"\")","v":{"v":20,"d":"20.00 €"}},null,{"$f":"IFERROR(IF(Dados[[#This Row],[Valor inicial]]>0,SLN(Dados[[#This Row],[Valor inicial]],Dados[[#This Row],[Valor esperado no final do prazo do empréstimo]],Dados[[#This Row],[Anos de serviço restantes ]]),0),0)","v":{"v":1666.6666666666667,"d":"1,666.67 €"}},{"$f":"IFERROR(Dados[[#This Row],[Depreciação linear anual]]/12,0)","v":{"v":138.88888888888889,"d":"138.89 €"}},{"$f":"IFERROR(Dados[[#This Row],[Valor inicial]]-(Dados[[#This Row],[Depreciação linear anual]]*((TODAY()-Dados[[#This Row],[Data de compra ou arrendamento]])/365)),0)","v":{"v":2515.981735159817,"d":"2,515.98 €"}}]
[null,789,"Modelo do Fabricante","Costa este","Razoável","local",6,{"v":50000,"d":"50,000.00 €"},{"v":20000,"d":"20,000.00 €"},{"$f":"TODAY()","v":"2018-06-29"},5,{"v":0.05,"d":"5.00%"},{"$f":"IFERROR(IF(AND(Dados[[#This Row],[Valor inicial]]>0,Dados[[#This Row],[Valor inicial]]<>Dados[[#This Row],[Entrada]]),-1*PMT(Dados[[#This Row],[Taxa de empréstimo]]/12,Dados[[#This Row],[Prazo do empréstimo em anos]]*12,Dados[[#This Row],[Valor inicial]]-Dados[[#This Row],[Entrada]]),0),0)","v":{"v":566.137009320328,"d":"566.14 €"}},{"v":40,"d":"40.00 €"},{"$f":"IFERROR(Dados[[#This Row],[Custos operacionais mensais]]+Dados[[#This Row],[Pagamento mensal]],\"\")","v":{"v":606.137009320328,"d":"606.14 €"}},{"v":1500,"d":"1,500.00 €"},{"$f":"IFERROR(IF(Dados[[#This Row],[Valor inicial]]>0,SLN(Dados[[#This Row],[Valor inicial]],Dados[[#This Row],[Valor esperado no final do prazo do empréstimo]],Dados[[#This Row],[Anos de serviço restantes ]]),0),0)","v":{"v":8083.333333333333,"d":"8,083.33 €"}},{"$f":"IFERROR(Dados[[#This Row],[Depreciação linear anual]]/12,0)","v":{"v":673.6111111111111,"d":"673.61 €"}},{"$f":"IFERROR(Dados[[#This Row],[Valor inicial]]-(Dados[[#This Row],[Depreciação linear anual]]*((TODAY()-Dados[[#This Row],[Data de compra ou arrendamento]])/365)),0)","v":{"v":50000,"d":"50,000.00 €"}}]
[{"$nulls":12},{"$f":"IFERROR(IF(AND(Dados[[#This Row],[Valor inicial]]>0,Dados[[#This Row],[Valor inicial]]<>Dados[[#This Row],[Entrada]]),-1*PMT(Dados[[#This Row],[Taxa de empréstimo]]/12,Dados[[#This Row],[Prazo do empréstimo em anos]]*12,Dados[[#This Row],[Valor inicial]]-Dados[[#This Row],[Entrada]]),0),0)","v":{"v":0,"d":"0.00 €"}},null,{"$f":"IFERROR(Dados[[#This Row],[Custos operacionais mensais]]+Dados[[#This Row],[Pagamento mensal]],\"\")","v":{"v":0,"d":"0.00 €"}},null,{"$f":"IFERROR(IF(Dados[[#This Row],[Valor inicial]]>0,SLN(Dados[[#This Row],[Valor inicial]],Dados[[#This Row],[Valor esperado no final do prazo do empréstimo]],Dados[[#This Row],[Anos de serviço restantes ]]),0),0)","v":{"v":0,"d":"0.00 €"}},{"$f":"IFERROR(Dados[[#This Row],[Depreciação linear anual]]/12,0)","v":{"v":0,"d":"0.00 €"}},{"$f":"IFERROR(Dados[[#This Row],[Valor inicial]]-(Dados[[#This Row],[Depreciação linear anual]]*((TODAY()-Dados[[#This Row],[Data de compra ou arrendamento]])/365)),0)","v":{"v":0,"d":"0.00 €"}}]
[{"$nulls":12},{"$f":"IFERROR(IF(AND(Dados[[#This Row],[Valor inicial]]>0,Dados[[#This Row],[Valor inicial]]<>Dados[[#This Row],[Entrada]]),-1*PMT(Dados[[#This Row],[Taxa de empréstimo]]/12,Dados[[#This Row],[Prazo do empréstimo em anos]]*12,Dados[[#This Row],[Valor inicial]]-Dados[[#This Row],[Entrada]]),0),0)","v":{"v":0,"d":"0.00 €"}},null,{"$f":"IFERROR(Dados[[#This Row],[Custos operacionais mensais]]+Dados[[#This Row],[Pagamento mensal]],\"\")","v":{"v":0,"d":"0.00 €"}},null,{"$f":"IFERROR(IF(Dados[[#This Row],[Valor inicial]]>0,SLN(Dados[[#This Row],[Valor inicial]],Dados[[#This Row],[Valor esperado no final do prazo do empréstimo]],Dados[[#This Row],[Anos de serviço restantes ]]),0),0)","v":{"v":0,"d":"0.00 €"}},{"$f":"IFERROR(Dados[[#This Row],[Depreciação linear anual]]/12,0)","v":{"v":0,"d":"0.00 €"}},{"$f":"IFERROR(Dados[[#This Row],[Valor inicial]]-(Dados[[#This Row],[Depreciação linear anual]]*((TODAY()-Dados[[#This Row],[Data de compra ou arrendamento]])/365)),0)","v":{"v":0,"d":"0.00 €"}}]